Cogmind - Beta 14 @@@ ROGUE MODE // 2024.11.15 @ 17:16:32 Player: Fangrelle Result: Destroyed by S-10 Pest with Light Assault Rifle Performance ------------- Evolutions (0) 0 Regions Visited (2) 400 Robots Destroyed (28) 140 Value Destroyed (791) 791 Prototype IDs (0) 0 Alien Tech Used (0) 0 Bonus (0) 0 TOTAL SCORE: 1331 Bonus ------- None Cogmind --------- Core Integrity 0/250 Matter 289/300 Energy 249/250 System Corruption 0% Temperature Cool (0) Movement Walking (190) Ox1 Location -10/Mines Parts ------- > --- POWER (1) -------- Ion Engine > --- PROPULSION (2) --- Aluminum Leg Aluminum Leg > --- UTILITY (2) ------ Large Storage Unit Targeting Computer > --- WEAPON (2) ------- Light Assault Rifle Grenade Launcher > --- INVENTORY (15) --- Aluminum Leg Aluminum Leg Compact Wheel Heat Sink Improved Heat Sink Targeting Computer ECM Suite Hacking Suite Datajack Mining Laser Peak State ------------ > --- POWER ------------ Light Nuclear Core > --- PROPULSION ------- Light Treads Light Treads > --- UTILITY ---------- Small Storage Unit Light Armor Plating > --- WEAPON ----------- Medium Laser Small Laser > --- INVENTORY -------- Ion Engine Ion Engine Compact Wheel Compact Wheel Targeting Computer ECM Suite Grenade Launcher Datajack [Rating: 9] Favorites ----------- Power Ion Engine Engine Ion Engine Power Core Light Nuclear Core Propulsion Light Treads Treads Light Treads Leg Aluminum Leg Wheel Compact Wheel Utility Targeting Computer Device Heat Sink Storage Small Storage Unit Processor Targeting Computer Protection Light Armor Plating Weapon Small Laser Energy Gun Small Laser Ballistic Gun Light Assault Rifle Launcher Grenade Launcher Build | -11 -10 -10 ------- Run | Yrd Mat Min Slots Evolved . | . . . Power . | . . . Propulsion . | . . . Utility . | . . . Weapon . | . . . Parts Attached 19 | . 18 1 Power 3 | . 3 . Engine 2 | . 2 . Core 1 | . 1 . Reactor . | . . . Propulsion 6 | . 6 . Treads 2 | . 2 . Leg 2 | . 2 . Wheel 2 | . 2 . Hover . | . . . Flight . | . . . Utility 7 | . 7 . Device 3 | . 3 . Storage 1 | . 1 . Processor 2 | . 2 . Hackware . | . . . Protection 1 | . 1 . Artifact . | . . . Weapon 3 | . 2 1 Energy Gun 1 | . 1 . Energy Cannon . | . . . Ballistic Gun 1 | . 1 . Ballistic Cannon . | . . . Launcher 1 | . . 1 Special Weapon . | . . . Impact Weapon . | . . . Slashing Weapon . | . . . Piercing Weapon . | . . . Special Melee Weapon . | . . . Unidentified Prototypes . | . . . Parts Lost 8 | . 8 . Power 1 | . 1 . Propulsion 3 | . 3 . Utility 2 | . 2 . Weapon 2 | . 2 . Highest Loss Streak 3 | . 3 . To Critical Strikes . | . . . Average Slot Usage (%) 91 | . 91 96 Engine 10 | . 9 14 Core 3 | . 4 . Treads 13 | . 15 . Leg 13 | . 11 28 Wheel 1 | . 1 . Device 2 | . 2 . Storage 13 | . 12 14 Processor 7 | . 7 14 Protection 3 | . 4 . Energy Gun 12 | . 14 . Ballistic Gun 6 | . 6 14 Launcher 1 | . . 10 Peak Build Rating 9 | . 9 8 Average Rating 7 | . 7 7 On Entrance 6 | 6 6 7 Naked Turns . | . . . Heaviest Build 29 | 12 26 29 Greatest Support 40 | 20 40 20 Greatest Overweight (x) 1 | . 1 1 Average Overweight (x) . | . . 1 Largest Inventory Capacity 15 | . 15 15 Average Capacity 10 | . 10 15 Most Carried 10 | . 8 10 Average Carried 7 | . 6 8 Final Capacity 15 | 8 15 15 Final Carried 10 | 6 8 10 Class Distribution -------------------- 51% | Mutant 48% | Scavenger-Mutant Dominant Class ---------------- Mutant | -10/Materials Scavenger-Mutant | -10/Mines Resources | -11 -10 -10 ----------- Run | Yrd Mat Min Matter Collected 446 | 200 188 58 Remotely . | . . . Salvage Created 969 | . 853 116 Parts 59 | . 53 6 Haulers Intercepted 2 | . 2 . Recyclers Shooed . | . . . Parts Field Recycled . | . . . Retrieved Matter . | . . . Parts Self-Destructed . | . . . Prevented . | . . . Kills | -11 -10 -10 ------- Run | Yrd Mat Min Combat Hostiles Destroyed 21 | . 17 4 Guns 16 | . 16 . AOE 4 | . . 4 Classes Destroyed 5 | . 5 . Hauler 2 | . 2 . Operator 2 | . 2 . Watcher 3 | . 3 . Swarmer 3 | . 3 . Grunt 18 | . 14 4 Best Kill Streak 5 | . 5 2 Combat Bots Only 5 | . 5 2 Max Kills in Single Turn 2 | . 1 2 Gunslinging . | . . . Exploded 2 | . . 2 Melee . | . . . Uniques/NPCs Destroyed . | . . . Combat | -11 -10 -10 -------- Run | Yrd Mat Min Hostile Shots Fired 158 | . 151 7 Missed 49 | . 47 2 Damage Taken 1252 | . 1166 86 Core 253 | . 233 20 Absorbed by Shields . | . . . Core Remaining (%) 100 | 100 . . Volleys Fired 139 | . 130 9 Largest 2 | . 2 2 Hottest 90 | . 90 50 Shots Fired 194 | . 180 14 Gun 189 | . 180 9 Cannon . | . . . Launcher 5 | . . 5 Special . | . . . Kinetic 56 | . 47 9 Thermal 133 | . 133 . Explosive 5 | . . 5 Electromagnetic . | . . . Robot Hit Streak 20 | . 20 6 Robot Miss Streak 6 | . 6 2 Penetration Max . | . . . Secondary Targets 3 | . 3 . Max Gunslinging Chain 1 | . 1 . Shots Hit Robots 135 | . 126 9 Core Hits 60 | . 48 12 Critical Kills . | . . . Critical Parts Destroyed . | . . . Critical Strikes 9 | . 9 . Burn 9 | . 9 . Melee Attacks . | . . . Impact . | . . . Slashing . | . . . Piercing . | . . . Sneak Attacks . | . . . Combat Hostiles . | . . . Follow-up Attacks . | . . . Damage Inflicted 1797 | . 1442 355 Guns 1472 | . 1435 37 Cannons . | . . . Explosions 318 | . . 318 Melee . | . . . Ramming 7 | . 7 . Kinetic 376 | . 339 37 Thermal 1096 | . 1096 . Explosive 318 | . . 318 Electromagnetic . | . . . Impact . | . . . Slashing . | . . . Piercing . | . . . Highest Corruption . | . . . Average Corruption . | . . . Corruption Purged . | . . . Corruption Blocked . | . . . Overload Shots . | . . . Overflow Damage 20 | . . 20 Projectiles . | . . . Explosions 20 | . . 20 Melee . | . . . Knockbacks . | . . . Impact . | . . . Kinetic . | . . . Secondary . | . . . Self-Inflicted Damage 22 | . 2 20 Shots 2 | . . 2 Rammed 2 | . 2 . Targets Rammed 2 | . 2 . Kicked . | . . . Crushed . | . . . Highest Temperature 366 | . 366 27 Average Temperature 106 | . 109 12 Received Heat Transfer 630 | . 579 51 Effects 3 | . 3 . Shutdowns 1 | . 1 . Interference 2 | . 2 . Siege Activations . | . . . Robots Corrupted . | . . . Combat Hostiles . | . . . Parts Fried . | . . . Impact Corruptions . | . . . Robots Melted 2 | . 2 . Combat Hostiles 1 | . 1 . Parts Melted 7 | . 7 . Heat Transferred 3575 | . 3575 . Parts Sabotaged . | . . . Parts Stolen . | . . . Parts Stripped . | . . . Power Chain Reactions . | . . . Alert | -11 -10 -10 ------- Run | Yrd Mat Min Peak Influence 208 | . 208 147 Initial 10 | . . 10 Average 75 | . 76 67 Maximum Alert Level 1 | . 1 . Low Security (%) 95 | . 94 100 Level 1 4 | . 5 . Level 2 . | . . . Level 3 . | . . . Level 4 . | . . . Level 5 . | . . . High Security . | . . . Max Security . | . . . Squads Dispatched 5 | . 5 . Investigation 3 | . 3 . Extermination . | . . . Reinforcement 2 | . 2 . Assault . | . . . Garrison . | . . . Intercept . | . . . Searches Triggered . | . . . Construction Impeded . | . . . Haulers Reinforced . | . . . Active Scanning Responses . | . . . Cargo Convoy Interrupts . | . . . Stealth | -11 -10 -10 --------- Run | Yrd Mat Min Distress Signals . | . . . Communications Jammed . | . . . Distress Signals . | . . . Times Spotted 35 | . 29 6 Peak Tracking Total 5 | . 5 2 Tactical Retreats . | . . . Traps | -11 -10 -10 ------- Run | Yrd Mat Min Traps Triggered 1 | . 1 . Indirectly . | . . . Trap Hack Attempts . | . . . Triggered . | . . . Disarmed . | . . . Reprogrammed . | . . . Reused . | . . . Traps Extracted . | . . . Installed . | . . . Triggered . | . . . Machines | -11 -10 -10 ---------- Run | Yrd Mat Min Machines Disabled . | . . . Max in Single Turn . | . . . Machines Repaired . | . . . Machines Dismantled . | . . . Machines Sabotaged . | . . . Overloaded Fab Kills . | . . . Hacking | -11 -10 -10 --------- Run | Yrd Mat Min Machines Accessed 10 | . 9 1 Terminals 8 | . 7 1 Fabricators . | . . . Repair Stations . | . . . Recycling Units 2 | . 2 . Scanalyzers . | . . . Garrison Access . | . . . Total Hacks 41 | . 40 1 Successful 21 | . 20 1 Failed 20 | . 20 . Catastrophic . | . . . Database Lockouts . | . . . Manual 37 | . 36 1 Terminals 34 | . 33 1 Fabricators . | . . . Repair Stations . | . . . Recycling Units 7 | . 7 . Scanalyzers . | . . . Garrison Access . | . . . Terminal Hacks 5 | . 4 1 Robot Analysis 2 | . 2 . Terminal Index 1 | . 1 . Zone Layout 2 | . 1 1 Fabricator Hacks . | . . . Repair Station Hacks . | . . . Recycling Unit Hacks 2 | . 2 . Retrieve Components 2 | . 2 . Scanalyzer . | . . . Garrison Access Hacks . | . . . Unauthorized Hacks 14 | . 14 . Terminals 12 | . 12 . Assimilate 3 | . 3 . Botnet 6 | . 6 . Operators 1 | . 1 . Skim 2 | . 2 . Fabricators . | . . . Repair Stations . | . . . Recycling Units 2 | . 2 . Tunnel 2 | . 2 . Scanalyzers . | . . . Garrison Access . | . . . Data Cores Recovered . | . . . Used . | . . . Hacking Detections 8 | . 8 . Full Trace Events . | . . . Feedback Events . | . . . Feedback Blocked . | . . . Robot Schematics Acquired . | . . . Robots Built . | . . . Authchips . | . . . Time . | . . . Total Robot Build Rating . | . . . Part Schematics Acquired . | . . . Parts Built . | . . . Authchips . | . . . Time . | . . . Total Part Build Rating . | . . . Parts Repaired . | . . . Time . | . . . Parts Recycled . | . . . Recycled Matter . | . . . Retrieved Matter . | . . . Retrieved Components 14 | . 14 . Parts Scanalyzed . | . . . Part Schematics Acquired . | . . . Parts Damaged . | . . . Bothacking | -11 -10 -10 ------------ Run | Yrd Mat Min Used RIF Installer . | . . . Robots Hacked . | . . . Non-combat . | . . . Combat . | . . . Robot Hacks Applied . | . . . Relay Couplers Released . | . . . Fabnet Peak Effective % . | . . . Robots Rewired . | . . . Allies Hacked . | . . . Hacks Repelled . | . . . Allies | -11 -10 -10 -------- Run | Yrd Mat Min Total Allies . | . . . Largest Group . | . . . Highest-Rated Group . | . . . Highest-Rated Ally . | . . . Total Orders . | . . . Ally Attacks . | . . . Total Damage . | . . . Kills . | . . . Allies Corrupted . | . . . Allies Melted . | . . . Intel | -11 -10 -10 ------- Run | Yrd Mat Min Robot Analysis Total 2 | . 2 . Derelict Logs Recovered . | . . . Drone Launches . | . . . Drone Recoveries . | . . . Exploration | -11 -10 -10 ------------- Run | Yrd Mat Min Turns Passed 2121 | . 1879 242 Spaces Moved 1022 | 1 910 111 Core . | . . . Treads 470 | . 470 . Legs 521 | 1 409 111 Wheels 31 | . 31 . Hover . | . . . Flight . | . . . Fastest Speed 100 | 120 100 190 Average Speed 166 | 120 164 190 Slowest Speed 190 | 120 190 190 Overloaded Moves . | . . . Propulsion Burnouts . | . . . Robots Hopped . | . . . Cave-ins Triggered . | . . . Exploration Rate (%) 40 | 3 97 20 Regions Visited 2 Branch Regions 1 Pre-discovered Areas 2 | . 2 . Known Exits Taken . | . . . Unknown Exits Taken 2 | 1 1 . Scrap Searched 1 | . . 1 Spaces Dug 11 | . . 11 Terrain Destroyed 56 | . . 56 Melee . | . . . Projectile . | . . . AOE 56 | . . 56 Terrain Rammed . | . . . Walls Destroyed . | . . . Machines Disabled . | . . . Actions | -11 -10 -10 --------- Run | Yrd Mat Min Total 1254 | . 1122 132 Wait 51 | . 43 8 Move 1020 | . 909 111 Hop . | . . . Pick Up 14 | . 11 3 Fast Attach 6 | . 6 . Attach 7 | . 6 1 Detach 1 | . 1 . Swap 6 | . 6 . Drop 8 | . 8 . Fire 139 | . 130 9 Melee . | . . . Ram 1 | . 1 . Kick . | . . . Crush 1 | . 1 . Escape Stasis . | . . . Rewire . | . . . Trap . | . . . Miscellaneous . | . . . Route ------- -11/Scrapyard -10/Materials (discovered 4 exits: [*Mat x3] / *Min) -10/Mines History --------- Turn | Location | Event 1 | -11/Scrapyard | Discovered new exit (range 0) 1 | -11/Scrapyard | Entered Materials 314 | -10/Materials | Build established: Mutant 339 | -10/Materials | Discovered new exit (range 8) 876 | -10/Materials | Discovered new exit (range 10) 896 | -10/Materials | Core integrity fell below 50% 1061 | -10/Materials | Core integrity fell below 20% 1083 | -10/Materials | Lost 3 parts (2n1w) 1137 | -10/Materials | Lost 3 parts (1p1n1u) 1414 | -10/Materials | Build established: Scavenger-Mutant 1702 | -10/Materials | Discovered new exit (range 15) 1806 | -10/Materials | Discovered new exit (range 10) 1880 | -10/Materials | Entered Mines 1914 | -10/Mines | Met a Derelict bent on vengeance 2122 | -10/Mines | Destroyed by S-10 Pest with Light Assault Rifle Last Messages --------------- 02085_ The unstable cave ceiling collapses. 02085_ U-05 Engineer builds a Wall. 02091_ Acquired 29 matter. 02095_ The unstable cave ceiling collapses. 02095_ 32 Matter crushed. 02095_ Acquired Aluminum Leg. 02096_ U-05 Engineer builds a Wall. 02100_ U-05 Engineer lays Concrete. 02101_ U-05 Engineer builds a Wall. 02101_ R-06 Scavenger collects Imp. Heat Sink. 02105_ U-05 Engineer builds a Wall. 02106_ Searching scrap... 02106_ Found Tractor Beam. 02106_ Found Med. Matter Pod. 02106_ Found 46 Matter. 02106_ Found Targeting Computer. 02106_ Found 64 Matter. 02109_ U-05 Engineer builds a Wall. 02113_ Acquired Targeting Computer. 02122_ Destroyed Flight Unit. Map ----- +----------------------------------------------------+ | ?????????????????????????????????????????????????? | | ?????????????????????????????????????????????????? | | ?????????????????????????????????????????????????? | | ?????????????????????????????????????????????????? | | ?????????????????????????????????????????????????? | | ?????????????????????????????????????????????????? | | ?????????????????????????????????????????????????? | | ?????????????????????????????????????????????????? | | ?????????????????????????????????????????????????? | | ?????????????????????????????????????????????????? | | ?????????????????????????????????????????????????? | | ?????????????????????????????????????????????????? | | ?????????????????????????????????????????????????? | | ?????????????????????????????????????????????????? | | ?????????????????????????????????????????????????? | | ?????????????????????????????????????????????????? | | ????????????????????????#####????????????????????? | | ???????????????????????? #????????????????????? | | ???????????????????????? #????????????????????? | | ???????????????????????? s #????????????????????? | | ????????????????????????s ####?????????????????? | | ####????????????????????# t ??????????????????? | | #????????????????????# #???????????????????? | | "" #???????????????????## #????????????????????? | | "" #??????????????????## #????????????????????? | | "" #????????????????### @ #?????????????????????? | | #????????????????# ##?????????????????????? | | "" ######???????????# ##??????????????????????? | | "" #???????????# %###???????????????????????? | | "" #?????####### %#?????????????????????????? | | ##?????# #!!#?????????????????????????? | | "" # #???#### ### #?????????????????????????? | | "" # #???# % #?????????????????????????? | | "" ### ##???# # #####?????????????????????????? | | #?# #????# # # #??????????????????????????? | | #?# #????# ##### ###????????????????????????? | | ####?# #????# ##???????????????????????? | | ?????# #????# #???????????????????????? | | ?????# #????## #### #???????????????????????? | | ###??# #?????# #??## #???????????????????????? | | #T#### ####??# #???## #??????????????????????? | | #??# #????## #?????????????????????? | | #### #??????# #?????????????????????? | | #???????# ##?????????????????????? | | ######????????###??????????????????????? | | """ """ #??????????????????????????????????????? | | """ """ #??????????????????????????????????????? | | """ """ #??????????????????????????????????????? | | #??????????????????????????????????????? | | ###########??????????????????????????????????????? | +----------------------------------------------------+ Best States ------------- Heat Dissipation 39 Energy Generation 14 Energy Capacity 250 Matter Stores 300 Matter Capacity 300 Sight Range 16 Terrain Scan Density 10 Armor Coverage 150 Evasion (%) 55 Targeting Accuracy 5 Recoil Reduction 2 Item Schematics ----------------- None Robot Schematics ------------------ None Fabricated ------------ Nothing Alien Tech Used ----------------- None Achievements -------------- None Challenges ------------ None Game ------ Seed LongswordPointGuard Manual? 0 Play Time 00:12:57 Cumulative 82.3 hours Start 2024.11.15 @ 17:04:47 End 2024.11.15 @ 17:16:32 Sessions 1 Manual Loads 0 Difficulty Rogue Special Mode None Game No. 143 Rogue 143 Adventurer 0 Explorer 0 Win Type - Total 0 Types 0/0/0/0/0/0/0/0/0 Lore% 41 Gallery% 36 Achievement% 34 Wizard Run 0 Options --------- Layout 0 ASCII 0 Keyboard 0 Movement Mouse Keybinds 0 Fullscreen 1 Font 24/Smallcaps Map View 91x25 Zoom Use 78% Tactical HUD 1 Map Filters NONE Filters NONE Steam 1 RUN: cd46a0e2-8400-4a98-950d-cbd2272b6eab